[Event "44th Chess Olympiad Open 2022"]
[Site "Chennai"]
[Date "2022.07.30"]
[Round "2.29"]
[White "Zrikem, Nassim"]
[Black "Zhao, Zong-Yuan"]
[Result "0-1"]
[WhiteElo "2075"]
[BlackElo "2513"]
[Annotator "ChessBase"]
[PlyCount "46"]
[EventDate "2022.??.??"]
[TimeControl "60"]

1. d4 {[%emt 0:00:10]} Nf6 {[%emt 0:00:16]} 2. Nf3 {[%emt 0:00:09]} e6 {
[%emt 0:00:24]} 3. e3 {[%emt 0:00:19]} c5 {[%emt 0:00:17]} 4. Bd3 {[%emt 0:00:
00]} d5 {[%emt 0:01:16]} 5. c3 {[%emt 0:00:56]} Nc6 {[%emt 0:01:56]} 6. Nbd2 {
[%emt 0:01:07]} Bd6 {[%emt 0:01:23]} 7. O-O {[%emt 0:00:39]} O-O {[%emt 0:00:
00]} 8. dxc5 {[%emt 0:01:09]} Bxc5 {[%emt 0:00:13]} 9. e4 {[%emt 0:00:09]} Qc7
{[%emt 0:05:36]} 10. Qe2 {[%emt 0:02:32]} b6 {[%emt 0:06:07]} 11. b4 {[%emt 0:
00:00]} Bd6 {[%emt 0:01:31]} 12. Bb2 {[%emt 0:09:59]} Ne5 {[%emt 0:16:16]} 13.
Nxe5 {[%emt 0:06:36]} Bxe5 {[%emt 0:00:05]} 14. Nf3 {[%emt 0:08:11]} dxe4 {
[%emt 0:04:26]} 15. Nxe5 {[%emt 0:07:02]} exd3 {[%emt 0:03:18]} 16. Nxd3 {
[%emt 0:07:52]} Ba6 {[%emt 0:01:44]} 17. Rfd1 {[%emt 0:02:18]} Rad8 {[%emt 0:
00:00]} 18. a4 {[%emt 0:20:51]} Bc4 {[%emt 0:12:36]} 19. Qe5 {[%emt 0:06:45]}
Qd7 {[%emt 0:03:41]} 20. Qg3 {[%emt 0:08:34]} e5 {[%emt 0:08:47]} 21. Ne1 {
[%emt 0:08:02]} Qxd1 {[%emt 0:01:07]} 22. Rxd1 {[%emt 0:00:03]} Rxd1 {[%emt 0:
00:00]} 23. Qe3 {[%emt 0:01:17]} Ng4 {[%emt 0:02:28]} 0-1

[Event "44th Chess Olympiad Open 2022"]
[Site "Chennai"]
[Date "2022.07.30"]
[Round "2.30"]
[White "Perez Ponsa, Federico"]
[Black "Cabezas Solano, David Alejandro"]
[Result "1-0"]
[WhiteElo "2554"]
[BlackElo "2196"]
[Annotator "TA"]
[PlyCount "71"]
[EventDate "2022.??.??"]
[TimeControl "60"]

{[%evp 13,71,-2,18,14,25,21,10,14,62,55,57,65,69,55,80,73,72,54,73,97,97,90,
102,102,100,93,101,93,103,111,99,86,103,54,58,66,66,64,66,62,56,67,50,39,182,
168,366,349,463,495,1171,1166,1025,1011,962,901,29979,29980,6291,4918]} 1. e4 {
[%emt 0:00:05]} c5 {[%emt 0:00:09]} 2. Nf3 {[%emt 0:00:09]} Nc6 {[%emt 0:00:07]
} 3. Bb5 {[%emt 0:00:13]} g6 {[%emt 0:00:11]} 4. O-O {[%emt 0:00:22]} Bg7 {
[%emt 0:00:47]} 5. c3 {[%emt 0:00:40]} Nf6 {[%emt 0:00:13]} 6. Re1 {[%emt 0:00:
00]} O-O {[%emt 0:00:33]} 7. d4 {[%emt 0:00:22]} Qb6 {[%emt 0:00:54] 7...d5 is
becoming the main line.} 8. Bxc6 {[%emt 0:02:10] B31: Sicilian: 2...Nc6 3 Bb5
g6.} dxc6 {[%emt 0:00:10]} 9. h3 {[%emt 0:00:08]} Rd8 {[%emt 0:07:35]} 10. Qc2
{[%emt 0:01:42] The position is equal.} h6 {[%emt 0:06:55]} (10... Nh5 $11 {
deserves consideration.}) 11. Be3 $14 {[%emt 0:09:02]} cxd4 {[%emt 0:05:13]}
12. cxd4 {[%emt 0:00:09] [#]} Qa6 $146 {[%emt 0:09:27]} ({Predecessor:} 12...
Qa5 13. Nbd2 Be6 14. Ne5 Rac8 15. Nb3 Qa4 16. Rec1 Nd7 17. Nxd7 Bxd7 18. Nc5
Qxc2 19. Rxc2 {1-0 (30) Sasikiran,K (2647)-Baklan,V (2587) Tornelo INT 2021})
13. Nbd2 {[%emt 0:03:01]} Be6 {[%emt 0:04:02]} 14. a4 {[%emt 0:10:10]} Rac8 {
[%emt 0:14:43]} 15. b4 {[%emt 0:04:08]} b6 {[%emt 0:02:03]} 16. Ne5 {[%emt 0:
00:00]} c5 {[%emt 0:18:34]} 17. dxc5 {[%emt 0:02:37]} bxc5 {[%emt 0:00:45] [#]}
18. b5 {[%emt 0:01:37]} Qb7 {[%emt 0:05:00][%cal Yf6e4]} 19. Nc6 {[%emt 0:00:
00]} Rxc6 {[%emt 0:03:11]} 20. bxc6 {[%emt 0:00:06]} Qxc6 {[%emt 0:00:01]} 21.
Rac1 {[%emt 0:03:04]} Nd7 {[%emt 0:02:34]} 22. Nb3 {[%emt 0:04:41][%cal Rb3c5]}
c4 {[%emt 0:03:40]} (22... Bxb3 $2 23. Qxb3 Rc8 24. Red1 $18) 23. Nd4 {[%emt 0:
00:00]} (23. Red1 $16) 23... Bxd4 {[%emt 0:00:37]} 24. Bxd4 {[%emt 0:00:05]}
Nc5 {[%emt 0:00:56]} 25. Bxc5 {[%emt 0:09:53]} Qxc5 {[%emt 0:00:01]} 26. Qc3 {
[%emt 0:00:28]} Kh7 {[%emt 0:02:40]} 27. Red1 {[%emt 0:03:30]} Rc8 {[%emt 0:00:
00]} 28. a5 {[%emt 0:04:12]} Qg5 {[%emt 0:06:24] This costs Black the game.} (
28... Qc6 $14) 29. Rb1 $18 {[%emt 0:03:56][%cal Yc1b1,Yb1b7,Yb7e7]} Qf4 $2 {
[%emt 0:02:21]} (29... a6 30. Rb6 Ra8) 30. Rb7 {[%emt 0:02:16][%csl Ya7,Ye7]}
Qxe4 {[%emt 0:00:00]} 31. Rxe7 {[%emt 0:04:39] [#] Hoping for Re1.} a6 {
[%emt 0:01:56]} (31... Rb8 $142 32. Qf6 (32. Rxa7 Rb1 $18) 32... Qf5 33. Qxf5
gxf5 34. Rxa7 c3) 32. Re1 {[%emt 0:00:00]} Qd3 {[%emt 0:01:35]} 33. Qxd3 {
[%emt 0:00:26]} cxd3 {[%emt 0:00:06]} 34. R1xe6 {[%emt 0:00:05]} d2 {[%emt 0:
00:00]} 35. Rxf7+ {[%emt 0:00:04]} Kg8 {[%emt 0:00:10]} 36. Rd7 {[%emt 0:00:04]
Weighted Error Value: White=0.05 (flawless) /Black=0.67} 1-0

[Event "44th Chess Olympiad Open 2022"]
[Site "Chennai"]
[Date "2022.07.30"]
[Round "2.30"]
[White "Flores, Diego"]
[Black "Chinchilla Miranda, Eugenio"]
[Result "1-0"]
[WhiteElo "2528"]
[BlackElo "2206"]
[Annotator "TA"]
[PlyCount "75"]
[EventDate "2022.??.??"]
[TimeControl "60"]

{[%evp 16,75,24,11,17,4,13,0,10,15,31,1,8,0,31,0,37,44,51,50,64,52,44,20,17,6,
20,20,44,0,44,50,63,77,91,94,134,141,133,129,149,152,179,177,229,239,228,218,
275,209,340,194,209,214,206,212,211,205,203,199,29994,29995]} 1. Nf3 {[%emt 0:
00:00]} d5 {[%emt 0:00:19]} 2. e3 {[%emt 0:00:09]} Nf6 {[%emt 0:01:22]} 3. c4 {
[%emt 0:00:12]} e6 {[%emt 0:00:26]} 4. Nc3 {[%emt 0:00:08]} c5 {[%emt 0:02:11]}
5. cxd5 {[%emt 0:00:25]} exd5 {[%emt 0:00:09]} 6. Bb5+ {[%emt 0:01:23]} Nc6 {
[%emt 0:00:15]} 7. d4 {[%emt 0:00:17]} cxd4 {[%emt 0:02:05] is currently
scoring better than 7...Bd6.} 8. Nxd4 {[%emt 0:00:35]} Bd7 {[%emt 0:00:14]} 9.
O-O {[%emt 0:00:34]} Bd6 {[%emt 0:02:11] D32: Tarrasch Defence: Sidelines and
lines without g3.} 10. b3 {[%emt 0:06:52]} O-O {[%emt 0:07:22]} 11. Bb2 {
[%emt 0:01:06]} Rc8 {[%emt 0:05:49] The position is equal.} 12. Rc1 {[%emt 0:
00:00]} Re8 {[%emt 0:06:29] [#]} 13. Nce2 $146 {[%emt 0:21:07]} ({Predecessor:
} 13. Nxc6 bxc6 14. Be2 h5 15. Qd4 Ng4 16. Bxg4 Bxg4 17. Na4 Qg5 18. f4 Qg6 19.
Qxa7 {½-½ (27) Andreikin,D (2724)-Afanasiev,N (2540) Bryansk 2021}) 13... a6
{[%emt 0:07:19]} 14. Bd3 {[%emt 0:08:56]} Ne4 {[%emt 0:03:48]} 15. Ng3 {
[%emt 0:03:43]} Bxg3 {[%emt 0:11:05]} 16. hxg3 {[%emt 0:00:26][%cal Yh2g3,
Yg3g4,Yg4f5]} Ne5 {[%emt 0:01:34]} 17. Rxc8 {[%emt 0:07:33]} Bxc8 {[%emt 0:00:
52]} 18. Be2 {[%emt 0:03:53]} (18. Ne2 $5 {[%cal Rd3e4]} Ng4 19. Nf4 $14) 18...
Qd6 {[%emt 0:10:27]} 19. g4 {[%emt 0:17:00]} Bd7 {[%emt 0:07:53]} 20. Nf5 {
[%emt 0:01:26]} Bxf5 {[%emt 0:04:58]} 21. gxf5 {[%emt 0:00:02]} f6 {[%emt 0:02:
58]} 22. Qd4 {[%emt 0:03:51]} Nc6 {[%emt 0:02:08] Pair of Knights!} 23. Qb6 {
[%emt 0:01:45]} Qd7 {[%emt 0:04:39]} 24. Bd3 $1 {[%emt 0:00:54]} Ne5 {[%emt 0:
02:02]} 25. Bxe5 {[%emt 0:02:27]} Rxe5 {[%emt 0:02:17] [#]} 26. Rc1 $1 {
[%emt 0:01:37][%cal Yf1c1,Yc1c5,Yc5d5,Yd5d8] Inhibits Qc8. Hoping for f3.} Re7
{[%emt 0:00:52]} (26... Rxf5 $2 27. Rc7 Qe8 28. Qxb7 $18) 27. Qd4 {[%emt 0:01:
57] White is more active.} h6 {[%emt 0:02:02] [#]} (27... Qxf5 $2 28. f3 $18)
28. f3 $1 {[%emt 0:00:00][%cal Yf2f3,Yf3f4]} Ng5 {[%emt 0:00:00]} 29. Rc5 {
[%emt 0:02:13]} Qd6 {[%emt 0:02:14]} (29... Kh7 {was necessary.} 30. f4 (30.
Rxd5 Qc7 $16) 30... Nf7 31. Rxd5 Qc6) 30. f4 $18 {[%emt 0:01:21]} ({Don't take
} 30. Rxd5 $6 Qg3 31. Kf1 (31. Rd8+ Kh7 $16) 31... Nxf3 32. gxf3 Qxf3+ 33. Ke1
Rxe3+ 34. Kd2 Qf2+ 35. Kc3 Kh7 $16) 30... Nf7 {[%emt 0:00:47]} 31. Rxd5 {
[%emt 0:00:49]} Qa3 {[%emt 0:00:29]} 32. Bc4 {[%emt 0:00:00] Threatens to win
with Rd8+.} Qc1+ {[%emt 0:01:58]} (32... b5 $142) 33. Kh2 {[%emt 0:00:34]} (33.
Kf2 $142 b5 34. Rd8+ Kh7 35. Bxf7 Rxf7 36. Qd5) 33... b5 {[%emt 0:01:18]} 34.
Rd8+ {[%emt 0:00:00]} Kh7 {[%emt 0:00:02]} 35. Bxf7 {[%emt 0:00:07] Dancing on
a razor blade.} Rxf7 {[%emt 0:00:11]} 36. Qe4 {[%emt 0:01:19] Qa8 would kill
now.} Qe1 {[%emt 0:01:16]} 37. Qf3 {[%emt 0:00:00] Intending Qg4 and mate.} Re7
$2 (37... Qh4+ $18 38. Qh3 Qxh3+ 39. Kxh3 Rc7) 38. Qh5 {[%emt 0:00:21]
Weighted Error Value: White=0.16 (very precise) / Black=0.39} 1-0

[Event "44th Chess Olympiad Open 2022"]
[Site "Chennai"]
[Date "2022.07.30"]
[Round "2.30"]
[White "Arias Santana, Mauricio"]
[Black "Peralta, Fernando"]
[Result "0-1"]
[WhiteElo "2318"]
[BlackElo "2591"]
[Annotator "TA"]
[PlyCount "102"]
[EventDate "2022.??.??"]
[TimeControl "60"]

{[%evp 21,102,4,12,12,13,0,0,0,0,0,0,0,10,1,20,20,23,23,23,0,0,0,0,0,0,0,0,0,0,
-2,0,0,0,0,0,0,0,-185,-186,-186,-201,-193,-191,-249,-129,-141,-124,-134,-120,
-106,-110,-112,-111,-126,-155,-162,-155,-172,-54,-105,-43,-148,-158,-130,-87,
-85,-79,-143,-132,-158,-165,-245,-242,-395,-157,-150,-139,-475,-460,-844,-237,
-29982,-29983]} 1. Nf3 {[%emt 0:00:43]} Nf6 {[%emt 0:00:24]} 2. c4 {[%emt 0:00:
00]} e6 {[%emt 0:00:40]} 3. g3 {[%emt 0:00:02]} b6 {[%emt 0:00:29]} 4. Bg2 {
[%emt 0:00:03]} Bb7 {[%emt 0:00:04]} 5. O-O {[%emt 0:00:09]} Be7 {[%emt 0:00:
00]} 6. d4 {[%emt 0:00:05]} O-O {[%emt 0:00:08]} 7. Nc3 {[%emt 0:00:07]} Ne4 {
[%emt 0:00:21]} 8. Bd2 {[%emt 0:00:43]} Bf6 {[%emt 0:03:18]} 9. Rc1 {[%emt 0:
00:00]} Nxd2 {[%emt 0:00:00]} 10. Qxd2 {[%emt 0:00:11]} d6 {[%emt 0:00:00]} 11.
d5 {[%emt 0:00:10] has lost popularity (11.e4).} e5 {[%emt 0:00:00]} 12. e4 {
[%emt 0:00:25] E18: Queen's Indian: Old Main Line (4 g3 Bb7 5 Bg2 Be7 6 0-0
0-0 7 Nc3).} a5 {[%emt 0:02:09]} 13. h4 {[%emt 0:00:16] [#]} Bc8 $146 {[%emt 0:
00:00]} ({Predecessor:} 13... Nd7 14. Bh3 Nc5 15. Ne1 g6 16. Nd3 Ba6 17. b3 h5
18. Nxc5 bxc5 19. Qd3 Bg7 20. Kh2 Qe7 21. Rce1 Bh6 22. Rd1 Rab8 23. Qc2 Ra8 24.
Qd3 Rab8 25. Qc2 Ra8 26. Qd3 {½-½ (26) Shimanov,A (2650)-Khismatullin,D 
(2674) Khanty-Mansiysk 2013}) 14. Kh2 {[%emt 0:04:32][%cal Yg1h2,Yh2h3,Yh3g2]
The position is equal.} Be7 {[%emt 0:15:35]} 15. Bh3 {[%emt 0:02:53]} Bxh3 {
[%emt 0:00:09]} 16. Kxh3 {[%emt 0:00:02]} Qd7+ {[%emt 0:00:15]} 17. Kg2 {
[%emt 0:02:22]} f5 {[%emt 0:00:07]} 18. exf5 $1 {[%emt 0:05:01]} Qxf5 {[%emt 0:
00:00]} 19. Qe2 {[%emt 0:02:10]} Na6 {[%emt 0:06:10]} 20. Ne4 {[%emt 0:04:25]}
Qg6 {[%emt 0:11:26]} 21. Rce1 {[%emt 0:26:06]} Rf5 {[%emt 0:04:21]} 22. Kh2 {
[%emt 0:18:58]} Raf8 {[%emt 0:01:29]} 23. Ng1 {[%emt 0:00:25]} Nc5 {[%emt 0:00:
00]} 24. Nxc5 {[%emt 0:08:28]} bxc5 {[%emt 0:00:10]} 25. f3 {[%emt 0:01:13]}
Qh6 {[%emt 0:14:36][%cal Ye7h4] And now ...Bxh4! would win.} 26. Nh3 {[%emt 0:
00:00]} Rh5 {[%emt 0:00:08][%cal Ye7h4]} 27. f4 {[%emt 0:05:47]} Bxh4 {[%emt 0:
00:00]} 28. gxh4 {[%emt 0:01:39]} Rxh4 {[%emt 0:00:06]} 29. Qg2 {[%emt 0:10:23]
} (29. Qe3 $11) 29... Rfxf4 $19 {[%emt 0:03:23]} 30. Rxf4 {[%emt 0:00:21]}
Qxf4+ {[%emt 0:00:17]} (30... Rxf4 31. Re4 $11) 31. Kg1 {[%emt 0:00:01]} Qxc4 {
[%emt 0:06:11] Threatens to win with ...Rg4.} 32. Nf2 {[%emt 0:01:31] Against
Rg4} (32. Qf3 {is a better defense.}) 32... Rh6 {[%emt 0:04:20]} (32... Qxa2
$19 33. Qg5 Rf4 34. Qd8+ Rf8 35. Qxc7 Qb3) 33. Qe4 $17 {[%emt 0:00:25]} Rg6+ $1
{[%emt 0:00:15]} (33... Qxa2 34. Qf5 Rf6 35. Qc8+ Rf8 36. Qe6+ Kh8 37. Qe7 $17)
34. Kh2 {[%emt 0:00:10]} Qxa2 {[%emt 0:02:41]} 35. Qf5 {[%emt 0:00:54]} Rf6 $1
{[%emt 0:00:39]} (35... Qxd5 $6 36. Qc8+ Kf7 37. Qd7+ Kf8 38. Qc8+ Ke7 39.
Qxc7+ Ke6 40. Qc8+ (40. Ne4 Rh6+ 41. Kg2 Kf5 $11) 40... Ke7 41. Qc7+ (41. Ne4
$2 Qe6 $19) 41... Kf8 42. Qc8+ (42. Ne4 Rh6+ 43. Kg2 Ke8 $11) 42... Ke7 43.
Qc7+ $11 (43. Ne4 $2 Qe6 $19)) (35... Qxb2 $2 36. Rb1 Rh6+ 37. Kg1 Qxf2+ 38.
Qxf2 $18) 36. Qc8+ {[%emt 0:00:19]} Rf8 {[%emt 0:00:10]} 37. Qe6+ {[%emt 0:00:
00]} Kh8 {[%emt 0:00:17]} 38. Qe7 {[%emt 0:02:22][%cal Re7f8] [#]} Rg8 {
[%emt 0:00:55]} ({Worse is} 38... Rxf2+ 39. Kg1 h6 40. Kxf2 $11) 39. Qf7 {
[%emt 0:00:30]} c6 {[%emt 0:09:24]} ({Black should try} 39... Qxb2 $19 {
Hoping for ...a4.} 40. Rg1 Qd2) 40. Rd1 $15 {[%emt 0:00:41]} h6 {[%emt 0:06:40]
} (40... Qxb2 $6 41. dxc6 e4 42. c7 $11) ({Better is} 40... a4 $17 {Strongly
threatening ...h6.} 41. Kg1 cxd5 42. Qxd5 Qxb2) 41. Qf3 {[%emt 0:23:15]} (41.
Ne4 $15) 41... cxd5 $17 {[%emt 0:03:58]} ({Much weaker is} 41... Qxb2 $6 42.
dxc6 c4 43. Rxd6 $11) 42. Rxd5 {[%emt 0:00:02]} e4 {[%emt 0:07:12]} 43. Qxe4 {
[%emt 0:02:33]} Qxb2 {[%emt 0:00:10]} 44. Rf5 {[%emt 0:01:10]} (44. Kg3 $142)
44... Qb8 {[%emt 0:04:27]} 45. Kg1 {[%emt 0:03:10]} Re8 {[%emt 0:06:33]} 46.
Qd5 {[%emt 0:00:42] [#]} (46. Qa4 {was necessary.}) 46... a4 $1 $19 {[%emt 0:
00:00]} 47. Ne4 $2 {[%emt 0:01:39]} (47. Rf3 {was worth a try.}) 47... Re5 $2 {
[%emt 0:04:49]} ({Not} 47... Qb1+ $2 48. Rf1 Qb4 49. Ng3 $19) (47... Qb4 $19 {
has better winning chances. ...a3 is the strong threat.} 48. Ng3 a3) 48. Rxe5
$17 {[%emt 0:00:40]} dxe5 {[%emt 0:00:01]} 49. Nd6 $2 {[%emt 0:01:31]} (49. Nc3
$17 {was the crucial defense.}) 49... Qb1+ $19 {[%emt 0:00:23]} 50. Kh2 {
[%emt 0:00:18]} (50. Kf2 $142 Kh7 51. Qf3) 50... a3 $2 {[%emt 0:03:44]} (50...
Qc2+ 51. Kg1 a3 52. Qa8+ Kh7 53. Qxa3 Qd1+ 54. Kf2 Qxd6) 51. Qxe5 $2 {[%emt 0:
00:43]} (51. Qa8+ $19 Kh7 52. Qxa3 Qc2+ 53. Kh3) 51... Qb2+ {[%emt 0:00:00]
Weighted Error Value: White=0.54/Black=0.38} 0-1

[Event "44th Chess Olympiad Open 2022"]
[Site "Chennai"]
[Date "2022.07.30"]
[Round "2.30"]
[White "Chaves Sanchez, Gabriel A"]
[Black "Tristan, Leonardo"]
[Result "0-1"]
[WhiteElo "2125"]
[BlackElo "2558"]
[Annotator "ChessBase"]
[PlyCount "78"]
[EventDate "2022.??.??"]
[TimeControl "60"]

1. e4 {[%emt 0:00:07]} e5 {[%emt 0:00:11]} 2. Nf3 {[%emt 0:00:09]} Nc6 {
[%emt 0:00:08]} 3. Bb5 {[%emt 0:00:07]} a6 {[%emt 0:00:13]} 4. Ba4 {[%emt 0:00:
00]} Nf6 {[%emt 0:00:13]} 5. O-O {[%emt 0:00:16]} Nxe4 {[%emt 0:00:59]} 6. d4 {
[%emt 0:06:25]} Be7 {[%emt 0:00:07]} 7. Re1 {[%emt 0:01:19]} b5 {[%emt 0:05:19]
} 8. Bb3 {[%emt 0:03:15]} d5 {[%emt 0:00:06]} 9. dxe5 {[%emt 0:00:04]} Be6 {
[%emt 0:00:10]} 10. c3 {[%emt 0:02:05]} O-O {[%emt 0:00:19]} 11. Nbd2 {[%emt 0:
00:00]} Nc5 {[%emt 0:00:08]} 12. Bc2 {[%emt 0:00:23]} d4 {[%emt 0:00:10]} 13.
Ne4 {[%emt 0:23:54]} dxc3 {[%emt 0:12:31]} 14. Nxc3 {[%emt 0:00:20]} Nb4 {
[%emt 0:14:23]} 15. Bb1 {[%emt 0:14:22]} Qxd1 {[%emt 0:12:12]} 16. Rxd1 {
[%emt 0:00:48]} Rfd8 {[%emt 0:00:08]} 17. Nd4 {[%emt 0:02:12]} Ncd3 {[%emt 0:
00:00]} 18. Nxe6 {[%emt 0:06:12]} fxe6 {[%emt 0:00:48]} 19. a3 {[%emt 0:06:59]}
Nxc1 {[%emt 0:01:45]} 20. Rxc1 {[%emt 0:00:10]} Bg5 {[%emt 0:03:09]} 21. Rf1 {
[%emt 0:01:30]} Nd3 {[%emt 0:00:39]} 22. Bxd3 {[%emt 0:04:44]} Rxd3 {[%emt 0:
00:00]} 23. Ne4 {[%emt 0:03:36]} Bf4 {[%emt 0:01:17]} 24. Nc5 {[%emt 0:03:48]}
Rd5 {[%emt 0:09:56]} 25. Nxe6 {[%emt 0:01:57]} Bxe5 {[%emt 0:00:04]} 26. Rac1 {
[%emt 0:02:05]} Bxb2 {[%emt 0:01:49]} 27. Rxc7 {[%emt 0:02:49]} Rd6 {[%emt 0:
00:00]} 28. Ng5 {[%emt 0:01:37]} Bxa3 {[%emt 0:02:36]} 29. f4 {[%emt 0:00:18]}
h6 {[%emt 0:02:26]} 30. Nf3 {[%emt 0:00:26]} Rad8 {[%emt 0:00:44]} 31. Ne5 {
[%emt 0:00:22]} Bb2 {[%emt 0:02:57]} 32. Nc6 {[%emt 0:01:23]} R6d7 {[%emt 0:00:
00]} 33. Nxd8 {[%emt 0:00:39]} Rxc7 {[%emt 0:00:04]} 34. Kf2 {[%emt 0:00:28]}
Bf6 {[%emt 0:05:22]} 35. Ne6 {[%emt 0:00:16]} Rc6 {[%emt 0:00:06]} 36. Re1 {
[%emt 0:00:39]} b4 {[%emt 0:00:40]} 37. f5 {[%emt 0:00:36]} b3 {[%emt 0:01:48]}
38. Nf4 {[%emt 0:00:22]} b2 {[%emt 0:00:50]} 39. Ng6 {[%emt 0:00:12]} Rc8 {
[%emt 0:00:35]} 0-1

[Event "44th Chess Olympiad Open 2022"]
[Site "Chennai"]
[Date "2022.07.30"]
[Round "2.31"]
[White "Grandelius, Nils"]
[Black "Zaibi, Amir"]
[Result "1-0"]
[WhiteElo "2655"]
[BlackElo "2398"]
[Annotator "TA"]
[PlyCount "103"]
[EventDate "2022.??.??"]
[TimeControl "60"]

{[%evp 13,103,45,34,27,43,29,37,51,52,57,93,90,105,110,99,105,162,160,177,158,
162,120,120,122,116,119,124,115,132,123,172,172,170,169,164,160,320,255,249,
255,257,257,269,260,343,347,311,294,356,341,420,333,521,492,471,405,374,379,
379,365,604,612,684,555,543,543,891,328,328,328,328,328,321,320,504,453,1158,
1179,1123,1106,1068,1027,787,771,1931,2254,1810,771,2127,1889,29979,29979]} 1.
d4 {[%emt 0:00:39]} Nf6 {[%emt 0:00:09]} 2. c4 {[%emt 0:00:59]} g6 {[%emt 0:00:
00]} 3. Nc3 {[%emt 0:00:34]} Bg7 {[%emt 0:00:06]} 4. e4 {[%emt 0:00:07]} d6 {
[%emt 0:00:06]} 5. Be2 {[%emt 0:00:34]} O-O {[%emt 0:00:21]} 6. Be3 {[%emt 0:
00:00]} c5 {[%emt 0:03:19]} 7. d5 {[%emt 0:00:52]} e6 {[%emt 0:01:11]} 8. Nf3 {
[%emt 0:00:13] E73: King's Indian: Averbakh Variation without 6...c5.} exd5 {
[%emt 0:02:12]} 9. cxd5 {[%emt 0:00:12]} b5 {[%emt 0:03:31]} 10. e5 {[%emt 0:
00:00] White is slightly better.} Ng4 {[%emt 0:07:47]} 11. Bg5 {[%emt 0:00:36]}
({But not} 11. Nxb5 Nxe5 12. Nxe5 Bxe5 $11) (11. Bxb5 Nd7 $11) 11... f6 {
[%emt 0:01:17] [#]} 12. exf6 {[%emt 0:05:58]} Bxf6 {[%emt 0:01:42]} 13. Bxf6 {
[%emt 0:01:32]} Qxf6 {[%emt 0:00:11]} 14. Nxb5 {[%emt 0:06:04] [#] Black must
now prevent Nc7.} Ba6 $146 {[%emt 0:27:59] [#]} (14... Nd7 $16) ({Predecessor:
} 14... Nd7 15. O-O Nb6 16. h3 Nh6 17. Qd2 Nf5 18. Rae1 Bd7 19. Nc3 Rae8 20.
Bd3 Nd4 21. Nxd4 Qxd4 {1-0 (49) Badelka,O (2397)-Goluch,P (2351) Lvov 2018})
15. O-O $1 $18 {[%emt 0:04:48]} Bxb5 {[%emt 0:03:47]} 16. Bxb5 {[%emt 0:00:21]}
a6 {[%emt 0:00:50]} 17. Ba4 {[%emt 0:15:55]} Ra7 {[%emt 0:01:28]} 18. h3 {
[%emt 0:09:32]} Ne5 {[%emt 0:00:49]} 19. Nxe5 {[%emt 0:09:09]} Qxe5 {[%emt 0:
00:00]} 20. Qc2 {[%emt 0:03:55]} Rb7 {[%emt 0:05:25]} 21. b3 {[%emt 0:01:06]
[%cal Yb2b3,Yb3b4]} Rb4 {[%emt 0:03:13]} (21... Re7 $16 {might work better.}
22. Qd2 Qf4 23. Qxf4 Rxf4) 22. Rfe1 $36 {[%emt 0:05:30] White has strong
initiative.} Qxd5 {[%emt 0:02:07]} 23. Rad1 {[%emt 0:00:42]} Rd4 {[%emt 0:06:
46]} 24. b4 {[%emt 0:02:45] And now Rxd4 would win.} Rc8 $2 {[%emt 0:03:03]} (
24... Rxd1 $16 25. Rxd1 Qe5 26. bxc5 dxc5) 25. Bb3 {[%emt 0:00:00][%cal Ya4b3,
Yb3c4,Yc4a6,Ya6b7] Threatening mate with Rxd4.} c4 {[%emt 0:00:18]} 26. Rxd4 {
[%emt 0:00:04]} Qxd4 {[%emt 0:00:24]} 27. Rd1 {[%emt 0:00:08]} Qf4 {[%emt 0:12:
52]} 28. g3 {[%emt 0:00:26]} Qe5 {[%emt 0:00:00]} 29. Bxc4+ {[%emt 0:01:00]}
Kg7 {[%emt 0:00:07]} 30. Qd3 {[%emt 0:03:04][%csl Ya6,Yd6]} Nc6 {[%emt 0:06:29]
} 31. a3 {[%emt 0:00:06]} ({Weaker is} 31. Qxd6 Qxd6 32. Rxd6 Nxb4 $18) (31.
Bxa6 Nxb4 32. Qxd6 Qxd6 33. Rxd6 Ra8 $16) 31... a5 {[%emt 0:00:34]} 32. Ba6 {
[%emt 0:03:06]} Rd8 {[%emt 0:01:48]} (32... Rf8 $142 33. f4 Qb2) 33. Bb7 {
[%emt 0:06:24]} Ne7 {[%emt 0:01:37]} 34. bxa5 {[%emt 0:00:05]} Qxa5 {[%emt 0:
00:24]} 35. Qd4+ {[%emt 0:00:05]} Kf7 {[%emt 0:00:00]} 36. Rd3 {[%emt 0:03:23]}
Qe1+ $2 {[%emt 0:02:30]} (36... Kg8 37. Re3 Rd7) 37. Kg2 {[%emt 0:00:41]} Qe6 {
[%emt 0:00:04]} 38. Rf3+ {[%emt 0:02:24]} Kg8 {[%emt 0:00:04]} 39. a4 {[%emt 0:
04:02]} Rb8 {[%emt 0:01:29]} 40. Re3 $2 {[%emt 0:03:10]} (40. Qb6 {Threatens
to win with a5.} Nd5 41. Bxd5 Rxb6 42. Bxe6+ Kh8 43. Rf8+ Kg7 44. Rf7+ Kh6 45.
Ra7) 40... Nf5 {[%emt 0:00:24]} 41. Rxe6 {[%emt 0:30:24][%cal Yd4f6] Qf6!
would kill now.} Nxd4 {[%emt 0:30:08]} 42. Rxd6 {[%emt 0:00:06]} Rxb7 {[%emt 0:
00:22]} 43. Rxd4 {[%emt 0:00:06] Endgame KR-KR} Rb3 {[%emt 0:00:20]} (43... Kf7
{keeps fighting.} 44. Rd5 Ke6) 44. Rd7 {[%emt 0:01:35]} Kh8 {[%emt 0:00:00]} (
44... Ra3 $142 45. Ra7 Kf8) 45. a5 {[%emt 0:00:00][%cal Ya4a5,Ya5a6] White
threatens a6 and mate.} Ra3 {[%emt 0:00:00]} 46. Ra7 {[%emt 0:00:00]} Kg8 {
[%emt 0:00:00]} 47. a6 {[%emt 0:00:00]} Kh8 {[%emt 0:00:00]} 48. f4 {[%emt 0:
00:00] Strongly threatening g4.} Kg8 {[%emt 0:00:00]} 49. g4 {[%emt 0:00:00]}
Ra5 {[%emt 0:00:00]} 50. Kf3 {[%emt 0:00:00]} (50. Ra8+ $142 Kg7 51. a7) 50...
Ra3+ {[%emt 0:00:00]} 51. Ke4 {[%emt 0:00:00]} Rxh3 {[%emt 0:00:00]} 52. Rb7 {
[%emt 0:00:00] Weighted Error Value: White=0.25 (precise) /Black=0.40} 1-0